bitfinex-derivatives/quotes_SOLF0:USTF0_20250421
["timestamp","ask_amount","ask_price","bid_price","bid_amount"]
[1745203369535,0.0492301,139.75,139.72,0.04598125]
[1745203369837,33.24,139.82,139.76,7.1552]
[1745203370235,33.24,139.82,139.73,4.0243]
[1745203370434,33.24,139.82,139.77,7.1549]
[1745203370637,33.24,139.82,139.73,365.0243]
[1745203370834,33.24,139.82,139.73,398.2643]
[1745203371038,0.05260977,139.79,139.76,0.04866429]
[1745203371440,0.05260977,139.79,139.78,7.1546]
[1745203372241,0.05260977,139.79,139.77,7.155]
[1745203372943,0.05260977,139.79,139.78,7.1546]
[1745203373444,0.05260977,139.79,139.76,0.04866429]
[1745203373944,0.05260977,139.79,139.77,7.1547]
[1745203374244,0.05260977,139.79,139.76,0.04866429]
[1745203374444,0.05260977,139.79,139.77,7.1546]
[1745203374645,0.05260977,139.79,139.76,0.04866429]
[1745203375847,0.05260977,139.79,139.78,7.1546]
[1745203377950,22.09537464,139.79,139.76,0.04866429]
[1745203378147,14.93537464,139.79,139.76,0.04866429]
[1745203378348,14.93537464,139.79,139.66,5.8361]
[1745203378545,7.1558,139.76,139.69,7.1588]
[1745203378751,7.1558,139.76,139.66,5.8361]
[1745203379048,7.1558,139.76,139.69,7.1588]
[1745203379248,7.1562,139.75,139.66,5.8361]
[1745203379450,35.94,139.78,139.66,5.8361]
[1745203379748,0.04998887,139.72,139.69,0.05324002]
[1745203380050,35.94,139.71,139.66,7.1607]
[1745203380247,35.94,139.71,139.69,0.04934494]
[1745203381344,0.0519368,139.72,139.69,0.04934494]
[1745203381551,35.96,139.76,139.69,0.04934494]
[1745203381749,29.76552974,139.72,139.59,8.37296263]
[1745203381952,14.88276487,139.63,139.59,8.37296263]
[1745203382247,14.88276487,139.6,139.47,230.64149379]
[1745203382750,14.88276487,139.57,139.55,79.67053287]
[1745203382948,45.2659,139.56,139.55,79.67053287]
[1745203383149,45.2659,139.56,139.55,79.71973739]
[1745203383853,45.2659,139.56,139.55,0.04920452]
[1745203384253,45.2659,139.56,139.55,4.52e-06]
[1745203384455,0.04670705,139.59,139.55,4.52e-06]
[1745203386858,14.88276487,139.56,139.46,100.03461604]
[1745203387158,42.59317807,139.55,139.46,100.03461604]
[1745203387657,14.88276487,139.52,139.46,100.03461604]
[1745203387857,567.14,139.53,139.41,6.0331]
[1745203388059,14.88276487,139.49,139.48,0.05011552]
[1745203388258,63.21226487,139.49,139.48,0.05011552]
[1745203388555,63.20276487,139.49,139.36,14.88276487]
[1745203388753,56.04276487,139.49,139.36,20.80446487]
[1745203388949,14.88276487,139.46,139.31,608.3]
[1745203389155,14.88276487,139.43,139.31,5.9217]
[1745203389351,41.16,139.42,139.31,3.8729]
[1745203389559,0.0497646,139.38,139.36,14.88276487]
[1745203389749,1.4342058,139.45,139.36,14.88276487]
[1745203390056,1.4342058,139.45,139.39,7.1742]
[1745203390257,1.4342058,139.45,139.36,14.88276487]
[1745203390660,1.4342058,139.45,139.35,14.88276487]
[1745203390857,0.05439195,139.42,139.39,7.22100307]
[1745203391158,0.05439195,139.42,139.39,0.04640307]
[1745203392060,0.05439195,139.42,139.4,7.1737]
[1745203392358,0.05439195,139.42,139.39,3.91320307]
[1745203392554,41.18,139.47,139.41,14.88276487]
[1745203393059,41.2,139.54,139.44,14.88276487]
[1745203393557,41.2,139.54,139.42,41.2]
[1745203393558,0.0509561,139.5,139.48,0.0545074]
[1745203399668,41.2,139.57,139.48,0.0545074]
[1745203399963,41.2,139.57,139.51,7.1681]
[1745203400166,41.2,139.57,139.49,14.88276487]
[1745203400361,41.2,139.57,139.5,1.876]
[1745203400664,41.2,139.6,139.53,7.1674]
[1745203400860,0.05457396,139.55,139.53,7.1674]
[1745203401058,41.2,139.6,139.53,7.1674]
[1745203401261,0.04752833,139.58,139.55,0.04603965]
[1745203404058,0.04752833,139.58,139.57,7.1654]
[1745203404570,0.04752833,139.58,139.56,7.1658]
[1745203404964,0.04752833,139.58,139.55,0.04603965]
[1745203405165,0.04752833,139.58,139.57,7.1654]
[1745203405460,41.2,139.64,139.55,0.04603965]
[1745203405663,41.2,139.64,139.54,16.79686487]
[1745203406469,0.05416641,139.6,139.58,0.04638071]
[1745203407461,7.1644,139.59,139.58,0.04638071]
[1745203407663,0.05416641,139.6,139.58,0.04638071]
[1745203408668,7.21816641,139.6,139.58,0.04638071]
[1745203408866,0.05416641,139.6,139.58,0.04638071]
[1745203411367,7.21816641,139.6,139.58,0.04638071]
[1745203411572,0.05416641,139.6,139.58,0.04638071]
[1745203412772,0.05416641,139.6,139.58,7.21108071]
[1745203413171,0.05416641,139.6,139.58,7.21118071]
[1745203413574,0.05416641,139.6,139.58,0.04638071]
[1745203413974,0.05416641,139.6,139.58,7.21118071]
[1745203414274,0.05416641,139.6,139.58,0.04638071]
[1745203414477,0.05416641,139.6,139.59,7.1644]
[1745203414976,0.05416641,139.6,139.58,0.04638071]
[1745203415779,0.05416641,139.6,139.59,7.1644]
[1745203416571,567.76,139.65,139.58,0.04638071]
[1745203416774,607.62,139.65,139.58,0.04638071]
[1745203417778,0.05357515,139.63,139.58,0.04638071]
[1745203418772,0.05357515,139.63,139.6,7.1634]
[1745203419072,0.05357515,139.63,139.58,0.04638071]
[1745203419676,7.1643,139.6,139.58,0.04638071]
[1745203420369,7.1644,139.59,139.58,0.04638071]
[1745203420879,0.04943175,139.6,139.58,0.04638071]
[1745203421377,7.21363175,139.6,139.58,0.04638071]
[1745203422174,0.04943175,139.6,139.58,0.04638071]
[1745203422779,7.21333175,139.6,139.58,0.04638071]
[1745203423287,39.90943175,139.6,139.53,2.0552]
[1745203423987,7.1645,139.59,139.53,2.0552]
[1745203424482,7.1645,139.59,139.55,0.05148728]
[1745203424678,39.90943175,139.6,139.55,0.05148728]
[1745203424883,0.04943175,139.6,139.56,14.88276487]
[1745203425183,7.1611,139.66,139.59,14.88276487]
[1745203425381,38.56,139.67,139.59,14.88276487]
[1745203425587,38.56,139.67,139.62,14.88276487]
[1745203425881,7.1611,139.66,139.59,14.88276487]
[1745203426183,38.56,139.67,139.59,14.88276487]
[1745203426384,0.04688684,139.64,139.62,7.1625]
[1745203426582,0.04688684,139.64,139.61,0.05040851]
[1745203427179,38.56,139.67,139.61,0.05040851]
[1745203427383,31.26430616,139.69,139.62,14.88276487]
[1745203427683,24.10500616,139.69,139.65,14.88276487]
[1745203427887,24.10500616,139.69,139.67,7.1599]
[1745203428586,24.15214073,139.69,139.68,7.1597]
[1745203428984,14.79304073,139.69,139.68,7.1597]
[1745203429179,65.99011028,139.7,139.69,7.1592]
[1745203429786,38.54,139.75,139.69,7.1592]
[1745203429989,38.54,139.75,139.66,3.9796]
[1745203430384,0.04841,139.72,139.69,0.04735338]
[1745203430885,7.20621,139.72,139.69,0.04735338]
[1745203431088,0.04841,139.72,139.69,0.04735338]
[1745203432491,7.20621,139.72,139.69,0.04735338]
[1745203432688,0.04841,139.72,139.69,0.04735338]
[1745203433991,0.04841,139.72,139.7,7.1584]
[1745203434487,0.04841,139.72,139.71,7.1582]
[1745203435492,0.04841,139.72,139.7,7.1585]
[1745203435694,0.04841,139.72,139.69,0.04735338]
[1745203436088,0.04841,139.72,139.69,7.20615338]
[1745203436589,0.04841,139.72,139.69,0.04735338]
[1745203436893,0.04841,139.72,139.7,7.1586]
[1745203437387,0.04841,139.72,139.69,0.04735338]
[1745203437590,35.34069636,139.88,139.69,0.04735338]
[1745203437891,1.43041052,139.82,139.74,14.88276487]
[1745203438094,1.43041052,139.82,139.76,7.1552]
[1745203438293,1.43041052,139.82,139.74,14.88276487]
[1745203438694,1.43041052,139.82,139.75,7.1558]
[1745203438895,7.1534,139.81,139.77,0.04825812]
[1745203441193,1.43041052,139.82,139.77,0.04825812]
[1745203441590,7.1541,139.8,139.77,0.04825812]
[1745203441795,1.43041052,139.82,139.77,0.04825812]
[1745203443095,1.43041052,139.82,139.77,14.93102299]
[1745203443596,45.6714,139.85,139.8,7.1531]
[1745203443800,38.52,139.85,139.77,14.88276487]
[1745203443997,38.52,139.86,139.81,0.05032896]
[1745203444297,581.96276487,139.89,139.81,0.05032896]
[1745203444497,7.1502,139.87,139.81,7.20322896]
[1745203445799,7.1506,139.86,139.81,7.20322896]
[1745203446301,7.1511,139.85,139.81,0.05032896]
[1745203446496,14.88276487,139.83,139.81,0.05032896]
[1745203446701,38.5,139.82,139.73,1.8851]
[1745203446900,14.88276487,139.8,139.72,7.1572]
[1745203447102,14.88276487,139.8,139.7,53.38276487]
[1745203447396,7.1548,139.78,139.72,7.1573]
[1745203447702,14.88276487,139.8,139.7,53.38276487]
[1745203447904,38.5,139.82,139.74,0.05322628]
[1745203447905,0.05180948,139.76,139.74,0.05322628]
[1745203448202,38.5,139.82,139.74,0.05322628]
[1745203448703,0.04873692,139.79,139.74,0.05322628]
[1745203448900,7.1548,139.78,139.74,0.05322628]
[1745203449201,0.04873692,139.79,139.74,0.05322628]
[1745203449602,0.04873692,139.79,139.74,2.12252628]
[1745203450002,0.04873692,139.79,139.78,7.1546]
[1745203452512,38.5,139.85,139.81,7.153]
[1745203452809,45.6509,139.86,139.81,7.153]
[1745203453009,38.5,139.86,139.79,14.88276487]
[1745203453406,7.1519,139.84,139.76,14.88276487]
[1745203453602,38.5,139.86,139.81,0.04830478]
[1745203453906,7.1521,139.84,139.81,0.04830478]
[1745203454411,7.1523,139.83,139.81,0.04830478]
[1745203458020,45.6507,139.86,139.81,7.20140478]
[1745203458225,38.5,139.86,139.81,0.04830478]
[1745203461022,7.1519,139.84,139.81,0.04830478]
[1745203461925,7.1521,139.83,139.81,0.04830478]
[1745203462518,38.5,139.86,139.71,37.56]
[1745203462724,2.0171,139.82,139.71,37.56]
[1745203462925,37.56,139.81,139.71,37.56]
[1745203463224,7.1537,139.8,139.74,7.1564]
[1745203463724,0.05085902,139.78,139.76,0.04799464]
[1745203465720,7.1551,139.77,139.76,0.04799464]
[1745203467628,7.1563,139.75,139.7,5.7886]
[1745203468027,37.56,139.76,139.7,12.947]
[1745203468228,44.716,139.76,139.7,12.947]
[1745203468830,0.05093587,139.74,139.72,0.05449129]
[1745203478133,0.05093587,139.74,139.72,7.21219129]
[1745203479137,0.05093587,139.74,139.72,0.05449129]
[1745203479334,7.20783587,139.74,139.72,0.05449129]
[1745203480435,7.1572,139.73,139.72,0.05449129]
[1745203480630,0.05093587,139.74,139.67,370.32120576]
[1745203481438,0.05093587,139.74,139.7,7.1582]
[1745203481736,0.05093587,139.74,139.71,0.05493115]
[1745203483134,0.05093587,139.74,139.71,9.37613691]
[1745203483536,0.05093587,139.74,139.72,7.1574]
[1745203483731,0.05093587,139.74,139.73,9.32120576]
[1745203484339,0.05093587,139.74,139.73,16.47840576]
[1745203484540,0.05093587,139.74,139.73,9.32120576]
[1745203484941,0.05093587,139.74,139.72,2.0734]
[1745203485345,0.05093587,139.74,139.72,9.2309]
[1745203486544,0.05093587,139.74,139.72,2.0734]
[1745203486744,0.05093587,139.74,139.71,16.53413691]
[1745203487338,0.05093587,139.74,139.72,7.1577]
[1745203489647,0.05093587,139.74,139.71,9.37613691]
[1745203489853,0.05093587,139.74,139.71,0.05493115]
[1745203490350,7.20793587,139.74,139.71,0.05493115]
[1745203491251,7.1575,139.73,139.71,0.05493115]
[1745203492946,0.05093587,139.74,139.72,9.32120576]
[1745203493550,0.05093587,139.74,139.72,16.47850576]
[1745203494149,0.05093587,139.74,139.73,7.1572]
[1745203499759,7.1549,139.78,139.74,7.1562]
[1745203499957,7.1549,139.78,139.74,16.47740576]
[1745203500158,7.1549,139.78,139.74,9.32120576]
[1745203500759,42.1743,139.79,139.76,7.1556]
[1745203500961,0.0472029,139.77,139.76,16.47680576]
[1745203501159,566.78,139.81,139.76,9.32120576]
[1745203501357,35.02,139.82,139.79,9.32120576]
[1745203501556,35.02,139.85,139.79,9.32120576]
[1745203501860,35.02,139.85,139.81,9.32120576]
[1745203502255,35.02,139.85,139.83,9.32120576]
[1745203502462,0.05352348,139.84,139.83,16.47320576]
[1745203503566,35.02,139.89,139.83,9.32120576]
[1745203503767,35.02,139.89,139.86,9.32120576]
[1745203503965,42.1691,139.89,139.86,9.32120576]
[1745203504357,35.02,139.89,139.86,9.32120576]
[1745203504862,35.02,139.89,139.86,16.51991438]
[1745203505260,35.02,139.89,139.86,9.36971438]
[1745203505464,35.02,139.89,139.86,0.04850862]
[1745203506067,35.02,139.89,139.86,9.36971438]
[1745203506369,35.02,139.92,139.88,9.32120576]
[1745203506871,35.02,139.92,139.89,0.05221453]
[1745203507065,24.45903594,140.01,139.91,9.32120576]
[1745203507269,9.32120576,139.97,139.86,44.32120576]
[1745203507968,9.32120576,139.97,139.87,7.1496]
[1745203508364,9.32120576,139.95,139.86,16.47160576]
[1745203508569,0.04815034,139.92,139.89,0.05222927]
[1745203508769,33.78,139.91,139.82,370.32120576]
[1745203509071,33.78,139.91,139.89,0.05236098]
[1745203509370,33.82815034,139.91,139.89,0.05355624]
[1745203509968,0.04815034,139.91,139.89,0.05355624]
[1745203510571,33.76,139.9,139.89,0.05355624]
[1745203512272,0.04815034,139.91,139.89,0.05355624]
[1745203517771,33.76,139.96,139.9,9.32120576]
[1745203518371,33.76,139.96,139.92,9.32120576]
[1745203518572,39.5482,139.99,139.92,9.32120576]
[1745203518871,46.6926,139.99,139.94,0.04614839]
[1745203519274,33.76,139.99,139.94,9.36735415]
[1745203519572,33.76,139.99,139.94,0.04614839]
[1745203519873,43.08120576,139.99,139.94,0.04614839]
[1745203520073,7.1454,139.97,139.94,0.04614839]
[1745203520674,7.1456,139.96,139.94,0.04614839]
[1745203521675,40.9059,139.95,139.94,0.04614839]
[1745203521877,33.76,139.95,139.87,5.8644]
[1745203522271,43.08120576,139.95,139.87,5.8644]
[1745203522873,0.04614839,139.92,139.9,0.0481296]
[1745203523974,7.19374839,139.92,139.9,0.0481296]
[1745203524576,0.04614839,139.92,139.9,0.0481296]
[1745203525579,7.19364839,139.92,139.9,0.0481296]
[1745203525774,0.04614839,139.92,139.9,0.0481296]
[1745203526076,7.1509,139.86,139.81,7.1529]
[1745203526476,13.13720576,139.93,139.82,9.32120576]
[1745203526477,33.76,139.9,139.82,9.32120576]
[1745203526669,33.76,139.9,139.84,9.32120576]
[1745203526869,3.816,139.93,139.86,9.32120576]
[1745203527076,599.98,139.94,139.88,9.32120576]
[1745203527278,0.05439518,139.91,139.86,9.37344327]
[1745203527479,0.05439518,139.91,139.86,9.32120576]
[1745203527776,0.05439518,139.91,139.87,0.04603651]
[1745203528470,0.05439518,139.91,139.88,9.32120576]
[1745203530480,0.05439518,139.91,139.87,7.19573651]
[1745203531583,7.20249518,139.91,139.87,0.04603651]
[1745203532181,0.05439518,139.91,139.87,7.19603651]
[1745203532676,0.05439518,139.91,139.87,0.04603651]
[1745203532876,0.05439518,139.91,139.88,9.32120576]
[1745203533080,0.05439518,139.91,139.9,9.32120576]
[1745203533276,0.05439518,139.91,139.9,16.46970576]
[1745203533882,7.1456,139.96,139.91,7.1478]
[1745203534183,33.76,139.97,139.9,9.32120576]
[1745203534482,33.76,139.97,139.92,7.1474]
[1745203534983,0.0398828,139.96,139.93,0.04558057]
[1745203538681,0.0398828,139.96,139.94,9.32120576]
[1745203539586,0.0398828,139.96,139.93,0.04558057]
[1745203540386,32.5398828,139.96,139.93,0.04558057]
[1745203540686,39.6856828,139.96,139.93,0.04558057]
[1745203540889,9.32120576,139.94,139.81,362.24378999]
[1745203541086,9.32120576,139.92,139.83,9.32120576]
[1745203541281,7.1488,139.9,139.83,9.32120576]
[1745203541482,34.86,139.91,139.83,11.37580576]
[1745203541788,42.0084,139.91,139.85,7.1506]
[1745203541987,34.86,139.91,139.83,11.37580576]
[1745203542189,0.04618755,139.89,139.87,0.0551099]
[1745203542389,7.19558755,139.89,139.87,0.0551099]
[1745203542589,0.04618755,139.89,139.87,0.0551099]
[1745203543886,7.1495,139.88,139.87,0.0551099]
[1745203546994,0.04618755,139.89,139.82,1.9585]
[1745203547291,0.04618755,139.89,139.81,361.0]
[1745203548196,0.04618755,139.89,139.84,0.05135421]
[1745203548694,7.151,139.85,139.84,0.05135421]
[1745203549088,7.19770107,139.86,139.84,0.05135421]
[1745203549494,0.04720107,139.86,139.84,0.05135421]
[1745203549696,9.36840683,139.86,139.78,2.0153]
[1745203550195,7.1519,139.84,139.78,9.1695]
[1745203550396,34.86,139.87,139.78,2.0153]
[1745203550695,9.32120576,139.85,139.78,2.0153]
[1745203550895,0.05493842,139.84,139.81,0.04996995]
[1745203551296,7.1528,139.82,139.81,0.04996995]
[1745203551497,0.05493842,139.84,139.81,0.04996995]
[1745203551795,7.20653842,139.84,139.81,0.04996995]
[1745203553796,7.1521,139.83,139.81,0.04996995]
[1745203554292,7.1526,139.82,139.81,0.04996995]
[1745203554798,0.05493842,139.84,139.81,0.04996995]
[1745203554994,0.05493842,139.84,139.81,11.17056995]
[1745203557198,0.05493842,139.84,139.81,18.32326995]
[1745203557398,0.05493842,139.84,139.81,11.17056995]
[1745203558899,7.20653842,139.84,139.81,11.17056995]
[1745203559698,7.1522,139.83,139.81,11.17056995]
[1745203561301,7.20663842,139.84,139.81,11.17056995]
[1745203561502,0.05493842,139.84,139.81,20.49177571]
[1745203561703,0.05493842,139.84,139.82,1.9611]
[1745203561904,38.7568,139.93,139.83,9.32120576]
[1745203562105,34.88,139.93,139.87,9.32120576]
[1745203562698,24.45903594,139.98,139.89,9.32120576]
[1745203562904,59.33903594,139.98,139.89,9.32120576]
[1745203563104,0.04621101,139.95,139.92,7.19728385]
[1745203563304,0.04621101,139.95,139.92,0.04988385]
[1745203563702,59.33903594,139.98,139.93,7.1466]
[1745203563902,59.33903594,139.98,139.92,0.04988385]
[1745203564305,59.33903594,139.98,139.94,7.1461]
[1745203564505,59.33903594,139.98,139.92,0.04988385]
[1745203564704,0.05417241,139.96,139.92,0.04988385]
[1745203565508,0.05417241,139.96,139.93,7.1468]
[1745203565709,0.05417241,139.96,139.92,0.04988385]
[1745203565900,0.05417241,139.96,139.94,7.1461]
[1745203566105,0.05417241,139.96,139.93,14.86785785]
[1745203566904,34.86,140.01,139.93,14.86785785]
[1745203567109,34.86,140.01,139.94,2.0628]
[1745203567811,566.44,140.03,139.96,14.86785785]
[1745203568109,7.18100565,139.99,139.96,0.05410923]
[1745203568305,0.03660565,139.99,139.96,0.05410923]
[1745203569110,0.03660565,139.99,139.96,14.92196708]
[1745203569613,7.1422,140.03,139.96,14.92196708]
[1745203570111,7.1424,140.02,139.98,7.1439]
[1745203570514,34.86,140.04,139.99,0.05374581]
[1745203570707,7.1434,140.0,139.99,0.05374581]
[1745203571817,7.143,140.01,139.99,0.05374581]
[1745203572515,34.86,140.04,139.99,0.05374581]
[1745203572920,14.86785785,140.01,139.91,2.0165]
[1745203573119,14.86785785,139.98,139.87,3.9792]
[1745203573517,14.86785785,139.98,139.87,11.1291]
[1745203573819,54.57585785,140.0,139.89,14.86785785]
[1745203574020,39.708,140.0,139.92,14.86785785]
[1745203574317,0.04867934,139.96,139.93,0.05484933]
[1745203576216,0.04867934,139.96,139.93,7.20144933]
[1745203576518,0.04867934,139.96,139.93,0.05484933]
[1745203577119,0.04867934,139.96,139.94,7.1462]
[1745203577816,0.04867934,139.96,139.93,0.05484933]
[1745203579218,0.04867934,139.96,139.93,7.20164933]
[1745203579920,0.04867934,139.96,139.93,0.05484933]
[1745203581019,0.04867934,139.96,139.93,7.20174933]
[1745203581719,0.04867934,139.96,139.94,7.1464]
[1745203581921,0.04867934,139.96,139.94,9.0898]
[1745203582220,0.04867934,139.96,139.94,1.9434]
[1745203584325,0.04867934,139.96,139.94,9.0898]
[1745203584724,0.04867934,139.96,139.93,11.39670283]
[1745203584927,0.04867934,139.96,139.93,0.05484933]
[1745203585329,7.1463,139.95,139.93,0.05484933]
[1745203585625,45.05933284,139.96,139.94,11.1206]
[1745203585829,7.1486,139.9,139.85,9.2906535]
[1745203586029,35.72,139.92,139.84,35.72]
[1745203586628,35.72,139.92,139.85,9.2906535]
[1745203586829,35.72,139.96,139.91,9.2906535]
[1745203587223,0.0543949,139.95,139.91,16.4384535]
[1745203587429,0.0543949,139.95,139.92,0.04943916]
[1745203587829,7.147,139.93,139.92,0.04943916]
[1745203593640,9.3450484,139.95,139.92,0.04943916]
[1745203593840,0.0543949,139.95,139.92,0.04943916]
[1745203594240,7.1468,139.94,139.92,0.04943916]
[1745203596337,7.2004949,139.95,139.92,0.04943916]
[1745203596843,0.0543949,139.95,139.92,0.04943916]
[1745203597939,7.1464,139.94,139.92,0.04943916]
[1745203598643,7.147,139.93,139.92,0.04943916]
[1745203600342,7.1468,139.94,139.92,0.04943916]
[1745203600542,0.0543949,139.95,139.92,0.04943916]
[1745203601244,7.147,139.93,139.92,0.04943916]
[1745203601946,7.1487,139.9,139.86,361.0]
[1745203602147,45.0106535,139.91,139.83,9.2906535]
[1745203602446,7.1495,139.89,139.83,16.4425535]
[1745203603148,0.04790153,139.87,139.85,0.05339509]
[1745203603847,0.04790153,139.87,139.85,9.34404859]
[1745203605751,35.72,139.9,139.87,7.1497]
[1745203605947,7.1476,139.92,139.87,16.4403535]
[1745203606148,7.1476,139.92,139.87,9.2906535]
[1745203606349,7.1481,139.91,139.87,9.2906535]
[1745203606847,7.1476,139.92,139.87,7.15]
[1745203607149,0.04627904,139.9,139.88,0.04896812]
[1745203607346,35.82,139.94,139.88,9.33962162]
[1745203607546,35.82,139.94,139.88,0.04896812]
[1745203607746,35.82,139.94,139.88,9.33962162]
[1745203607945,15.0946535,139.99,139.88,9.33962162]
[1745203607946,7.1452,139.97,139.92,9.2906535]
[1745203608447,24.45903594,140.04,139.96,9.2906535]
[1745203608747,24.45903594,140.04,139.98,9.2906535]
[1745203608950,0.04789704,140.01,139.98,9.2906535]
[1745203609254,0.04789704,140.01,139.99,0.0476868]
[1745203609955,0.04789704,140.01,139.99,7.1915868]
[1745203610256,24.45903594,140.07,140.0,9.2906535]
[1745203610454,24.45903594,140.07,140.03,9.2906535]
[1745203611256,24.45903594,140.07,140.01,16.89034848]
[1745203611658,24.45903594,140.07,140.03,0.04691547]
[1745203613360,35.82,140.09,140.04,14.84534848]
[1745203613567,35.82,140.09,140.05,7.1403]
[1745203613860,35.8,140.13,140.04,14.84534848]
[1745203614161,7.1376,140.12,140.06,7.1398]
[1745203614364,7.1376,140.12,140.07,0.04813472]
[1745203614561,35.8,140.13,140.07,0.04813472]
[1745203614965,7.1374,140.12,140.07,0.04813472]
[1745203615365,42.9368,140.13,140.08,7.1392]
[1745203615666,35.8,140.13,140.08,7.1392]
[1745203615963,35.8,140.13,140.07,0.04813472]
[1745203615964,35.8,140.13,140.07,14.8934832]
[1745203616362,35.8,140.13,140.09,7.1383]
[1745203616662,35.8,140.13,140.07,14.8934832]
[1745203617064,35.8,140.13,140.1,7.1379]
[1745203617261,35.8,140.13,140.07,14.84534848]
[1745203617462,35.8,140.13,140.1,0.05410668]
[1745203618366,35.8,140.13,140.11,7.1377]
[1745203618561,35.8,140.13,140.08,14.84534848]
[1745203619366,0.05256417,140.12,140.09,0.04569619]
[1745203620374,0.05256417,140.12,140.1,7.1382]
[1745203620966,35.78,140.17,140.1,14.84534848]
[1745203621568,7.1361,140.15,140.11,7.1374]
[1745203621768,35.78,140.17,140.1,14.84534848]
[1745203621970,42.9148,140.17,140.13,7.1364]
[1745203622170,35.78,140.17,140.13,7.1364]
[1745203622370,35.78,140.17,140.12,0.05447529]
[1745203622571,35.78,140.17,140.15,7.1354]
[1745203622767,35.78,140.17,140.12,0.05447529]
[1745203622967,35.78,140.17,140.16,7.1352]
[1745203623173,42.9128,140.21,140.13,14.84534848]
[1745203623373,42.9128,140.21,140.15,0.05293999]
[1745203623676,35.78,140.21,140.16,7.1349]
[1745203623871,35.78,140.21,140.15,0.05293999]
[1745203624077,35.78,140.21,140.15,7.18863999]
[1745203624279,7.1343,140.18,140.15,0.05293999]
[1745203624479,35.76,140.17,140.15,0.05293999]
[1745203627385,42.8947,140.17,140.15,0.05293999]
[1745203628484,42.8932,140.21,140.15,7.18853999]
[1745203628882,35.76,140.21,140.15,0.05293999]
[1745203629683,7.1336,140.2,140.15,0.05293999]
[1745203630083,35.76,140.21,140.15,0.05293999]
[1745203630285,42.893,140.21,140.15,7.18863999]
[1745203630480,35.76,140.21,140.15,7.18863999]
[1745203630684,42.8929,140.21,140.15,7.18863999]
[1745203631183,42.8929,140.21,140.16,7.1351]
[1745203631586,35.76,140.21,140.15,0.05293999]
[1745203631886,35.76,140.21,140.17,7.1346]
[1745203632584,42.8929,140.21,140.16,7.1351]
[1745203633189,35.76,140.21,140.15,0.05293999]
[1745203633589,42.893,140.21,140.16,7.1352]
[1745203633791,35.76,140.21,140.15,0.05293999]
[1745203634191,42.893,140.21,140.16,7.135]
[1745203634391,35.76,140.21,140.15,0.05293999]
[1745203634690,35.76,140.21,140.18,7.134]
[1745203634890,35.76,140.21,140.15,14.89828847]
[1745203634891,35.76,140.21,140.15,14.84534848]
[1745203635191,42.971,140.25,140.2,7.1328]
[1745203635396,35.84,140.25,140.19,9.2557954]
[1745203635691,35.84,140.25,140.21,0.04844539]
[1745203636089,7.1325,140.22,140.21,0.04844539]
[1745203636887,35.84,140.25,140.21,0.04844539]
[1745203637490,7.132,140.23,140.21,0.04844539]
[1745203637686,35.84,140.25,140.21,0.04844539]
[1745203637891,9.2557954,140.22,140.11,9.2557954]
[1745203638191,604.8837,140.21,140.11,9.2557954]
[1745203638382,35.84,140.21,140.17,7.1347]
[1745203638587,35.84,140.21,140.15,9.2557954]
[1745203638787,9.2557954,140.19,140.1,9.2557954]
[1745203638987,9.1196,140.18,140.17,0.05244134]
[1745203639186,11.2411954,140.18,140.12,7.1372]
[1745203639383,35.82,140.17,140.09,9.2557954]
[1745203639594,9.2557954,140.16,140.07,393.86525056]
[1745203640090,9.2557954,140.14,140.07,342.68245516]
[1745203640293,9.2557954,140.12,140.1,0.04883731]
[1745203640491,35.82,140.11,140.07,342.68245516]
[1745203640687,35.82,140.11,140.03,9.2557954]
[1745203640885,35.82,140.11,140.06,7.1402]
[1745203641689,0.04742458,140.1,140.07,0.05161739]
[1745203642190,0.04742458,140.1,140.07,7.19131739]
[1745203642396,0.04742458,140.1,140.07,14.89116406]
[1745203642691,0.04742458,140.1,140.08,7.1393]
[1745203643190,0.04742458,140.1,140.07,22.03086406]
[1745203645293,0.04742458,140.1,140.07,0.05161739]
[1745203645694,7.1393,140.09,140.07,0.05161739]
[1745203645893,0.04742458,140.1,140.07,0.05161739]
[1745203648293,0.04742458,140.1,140.09,21.97834667]
[1745203648493,42.9761,140.15,140.09,14.83954667]
[1745203648894,35.84,140.15,140.09,14.83954667]
[1745203649393,35.84,140.15,140.11,7.1374]